bitfinex/quotes_SOLUSD_20241110
["timestamp","ask_amount","ask_price","bid_price","bid_amount"]
[1731230439535,9.08076694,205.37,205.36,0.1]
[1731230439913,9.08076694,205.37,205.34,20.1]
[1731230440118,9.08076694,205.37,205.34,0.1]
[1731230441242,23.902374,205.45,205.34,0.1]
[1731230441422,9.08076694,205.36,205.34,0.1]
[1731230447244,23.902374,205.45,205.34,0.1]
[1731230447427,9.08076694,205.37,205.34,0.1]
[1731230447628,9.08076694,205.36,205.34,0.1]
[1731230451543,9.08076531,205.36,205.34,0.1]
[1731230451750,0.12549,205.42,205.34,0.1]
[1731230451951,9.08076694,205.36,205.34,0.1]
[1731230455655,9.08076694,205.37,205.34,0.1]
[1731230455843,0.84535779,205.43,205.35,0.1]
[1731230456048,16.1141,205.52,205.42,0.1]
[1731230456245,9.08076694,205.49,205.44,20.0]
[1731230456447,9.08076694,205.51,205.45,9.18076694]
[1731230456744,9.08076694,205.51,205.46,20.0]
[1731230457848,9.08076694,205.51,205.45,20.1]
[1731230458333,9.08076694,205.5,205.45,20.1]
[1731230458641,9.08076694,205.5,205.45,0.1]
[1731230458947,9.08076694,205.46,205.42,0.1]
[1731230459330,9.08076694,205.47,205.42,0.1]
[1731230459830,9.08076694,205.46,205.42,0.1]
[1731230460228,9.08076694,205.47,205.42,20.1]
[1731230462130,9.08076694,205.47,205.42,0.1]
[1731230463991,23.776884,205.55,205.45,9.08076694]
[1731230464139,9.08076694,205.5,205.46,20.1]
[1731230464451,9.08076694,205.49,205.46,20.1]
[1731230464638,9.08076694,205.49,205.46,0.1]
[1731230464834,9.08076694,205.48,205.46,0.1]
[1731230467645,9.08076694,205.48,205.44,20.0]
[1731230468032,9.08076694,205.45,205.44,20.0]
[1731230468235,9.08076694,205.45,205.42,0.1]
[1731230469043,9.08076694,205.46,205.42,0.1]
[1731230470547,9.08076694,205.45,205.42,0.1]
[1731230471046,0.12549,205.49,205.42,0.1]
[1731230471273,9.08076694,205.46,205.42,0.1]
[1731230472356,9.08076694,205.45,205.42,0.1]
[1731230472762,9.08076694,205.43,205.41,0.1]
[1731230472939,9.08076694,205.44,205.41,0.1]
[1731230474253,161.3,205.58,205.45,0.1]
[1731230474456,161.3,205.59,205.47,0.1]
[1731230474633,5.06228684,205.57,205.47,0.1]
[1731230474841,9.08076694,205.49,205.47,0.1]
[1731230475253,5.06228684,205.57,205.47,0.1]
[1731230475460,9.08076694,205.51,205.47,0.1]
[1731230476239,9.08076694,205.5,205.47,0.1]
[1731230476446,9.08076694,205.49,205.46,0.1]
[1731230476949,9.08076694,205.47,205.44,20.1]
[1731230477269,9.08076694,205.47,205.44,0.1]
[1731230477639,9.08076694,205.47,205.43,0.1]
[1731230478056,9.08076694,205.46,205.43,0.1]
[1731230478837,9.08076694,205.44,205.42,0.1]
[1731230479040,9.08076694,205.44,205.41,0.1]
[1731230479439,0.12549,205.49,205.41,0.1]
[1731230479654,9.08076694,205.45,205.43,0.1]
[1731230480469,9.08076694,205.46,205.43,0.1]
[1731230480698,9.08076694,205.46,205.42,0.1]
[1731230480849,9.08076694,205.46,205.43,0.1]
[1731230481046,15.442,205.53,205.45,0.1]
[1731230481243,9.08076694,205.47,205.45,0.1]
[1731230481865,9.08076694,205.46,205.45,0.1]
[1731230482455,5.06228684,205.57,205.48,0.1]
[1731230482779,9.08076694,205.51,205.48,0.1]
[1731230483259,5.06228684,205.57,205.48,0.1]
[1731230483260,0.12549,205.56,205.48,0.1]
[1731230483645,9.08076694,205.53,205.48,0.1]
[1731230484860,9.08076694,205.53,205.5,0.1]
[1731230485564,36.32306776,205.6,205.5,0.1]
[1731230485565,9.08076694,205.54,205.5,0.1]
[1731230486271,9.08076694,205.53,205.5,0.2]
[1731230486463,9.08076694,205.54,205.5,0.2]
[1731230486672,9.08076694,205.54,205.52,0.1]
[1731230486853,9.08076694,205.53,205.52,0.1]
[1731230487056,9.08076694,205.53,205.52,0.2]
[1731230487672,9.08076694,205.53,205.5,0.1]
[1731230487863,9.08076694,205.51,205.5,0.1]
[1731230488570,9.08076694,205.52,205.5,0.1]
[1731230488769,36.32306776,205.6,205.5,0.1]
[1731230488973,0.12549,205.59,205.5,0.1]
[1731230489184,176.8385,205.63,205.5,0.2]
[1731230489350,9.08076694,205.53,205.5,0.2]
[1731230489553,9.08076694,205.53,205.52,0.1]
[1731230490077,0.12549,205.59,205.52,0.1]
[1731230490374,9.08076694,205.55,205.52,0.2]
[1731230492671,9.08076694,205.59,205.57,0.1]
[1731230492971,36.32306776,205.7,205.57,0.1]
[1731230493276,9.08076694,205.59,205.57,0.1]
[1731230493887,9.08076694,205.58,205.57,0.1]
[1731230495280,23.902374,205.69,205.57,0.1]
[1731230495577,185.202374,205.69,205.57,0.1]
[1731230495782,9.08076694,205.58,205.55,0.1]
[1731230495980,9.08076694,205.56,205.55,0.1]
[1731230496183,185.202374,205.69,205.57,0.1]
[1731230496564,9.08076694,205.58,205.57,0.1]
[1731230498079,179.81870446,205.69,205.57,0.1]
[1731230498264,9.08076694,205.58,205.57,0.1]
[1731230498466,9.08076694,205.58,205.56,0.1]
[1731230498685,9.08076694,205.58,205.57,0.1]
[1731230498890,9.08076694,205.59,205.57,0.1]
[1731230499184,9.08076694,205.63,205.59,0.1]
[1731230499368,9.08076694,205.63,205.61,0.1]
[1731230499766,9.08076694,205.62,205.61,0.1]
[1731230502488,0.12549,205.69,205.62,20.0]
[1731230502669,161.3,205.76,205.62,20.1]
[1731230502872,9.08076694,205.64,205.62,20.1]
[1731230503695,9.08076694,205.63,205.62,20.1]
[1731230503989,36.32306776,205.7,205.63,0.1]
[1731230504294,9.08076694,205.64,205.63,0.1]
[1731230508587,9.08076694,205.64,205.62,20.1]
[1731230508825,9.08076694,205.63,205.61,0.1]
[1731230508979,9.08076694,205.62,205.61,0.1]
[1731230509187,9.08076694,205.62,205.6,0.1]
[1731230510988,9.08076694,205.62,205.61,0.1]
[1731230511195,9.08076694,205.62,205.6,0.1]
[1731230511404,9.08076694,205.61,205.6,0.1]
[1731230512892,0.12549,205.7,205.6,0.1]
[1731230513087,36.44855776,205.7,205.62,0.1]
[1731230513281,0.12549,205.7,205.62,0.1]
[1731230513485,0.12549,205.7,205.63,0.1]
[1731230515402,0.12549,205.7,205.61,0.1]
[1731230516102,9.08076694,205.63,205.61,0.1]
[1731230516672,36.44855776,205.7,205.61,0.1]
[1731230516881,36.44855776,205.7,205.64,0.1]
[1731230517078,9.08076694,205.65,205.64,0.1]
[1731230517498,9.08076694,205.65,205.63,0.1]
[1731230517903,9.08076694,205.65,205.61,0.1]
[1731230518310,9.08076694,205.65,205.63,0.1]
[1731230518897,9.08076694,205.64,205.63,0.1]
[1731230520188,0.12549,205.7,205.65,0.1]
[1731230520697,23.902374,205.74,205.67,0.1]
[1731230521392,9.08076694,205.68,205.67,0.1]
[1731230522704,23.902374,205.74,205.67,0.1]
[1731230522888,9.08076694,205.68,205.67,0.1]
[1731230524510,23.902374,205.74,205.67,0.1]
[1731230525010,9.08076694,205.68,205.67,0.1]
[1731230525201,23.902374,205.74,205.67,0.1]
[1731230525405,9.08076694,205.68,205.67,0.1]
[1731230526106,0.12549,205.69,205.67,0.1]
[1731230526308,9.08076694,205.68,205.67,0.1]
[1731230529100,23.902374,205.67,205.61,0.1]
[1731230529297,9.08076694,205.62,205.61,0.1]
[1731230531202,23.776884,205.69,205.61,0.1]
[1731230531405,23.776884,205.69,205.62,0.1]
[1731230531618,9.08076694,205.63,205.62,0.1]
[1731230532493,23.776884,205.75,205.65,0.1]
[1731230532702,16.5097,205.76,205.67,0.1]
[1731230533019,9.08076694,205.69,205.67,0.1]
[1731230533229,16.5097,205.76,205.67,0.1]
[1731230533414,9.08076694,205.69,205.67,0.1]
[1731230534419,9.08076694,205.68,205.67,0.1]
[1731230535217,16.5097,205.76,205.67,0.2]
[1731230535407,9.08076694,205.68,205.67,0.2]
[1731230535611,9.08076694,205.68,205.67,0.1]
[1731230535909,9.08076694,205.68,205.65,0.1]
[1731230536105,9.08076694,205.66,205.65,0.1]
[1731230536330,9.08076694,205.66,205.64,20.0]
[1731230536525,9.08076694,205.65,205.63,0.1]
[1731230536710,9.08076694,205.64,205.63,0.1]
[1731230537974,9.08076694,205.64,205.6,0.1]
[1731230538224,9.08076694,205.61,205.6,0.1]
[1731230538606,9.08076694,205.61,205.53,6.4453]
[1731230538607,45.4038347,205.61,205.56,0.1]
[1731230538807,9.08076694,205.57,205.56,0.1]
[1731230539530,9.08076694,205.57,205.55,0.1]
[1731230539716,9.08076694,205.56,205.55,0.1]
[1731230540221,9.08076694,205.56,205.54,0.1]
[1731230540408,9.08076694,205.55,205.54,0.1]
[1731230542210,23.776884,205.63,205.57,0.1]
[1731230542525,9.08076694,205.58,205.57,0.1]
[1731230542830,0.84511,205.67,205.6,0.1]
[1731230543165,9.08076694,205.61,205.6,0.1]
[1731230543327,23.776884,205.66,205.6,0.1]
[1731230543525,9.08076694,205.61,205.6,0.1]
[1731230548821,45.4038347,205.61,205.56,0.1]
[1731230549026,9.08076694,205.57,205.56,0.1]
[1731230549616,9.08076694,205.57,205.52,0.2]
[1731230549814,9.08076694,205.53,205.49,0.2]
[1731230550021,0.12549,205.58,205.52,0.1]
[1731230550206,0.12549,205.58,205.54,0.1]
[1731230550407,16.1323,205.6,205.54,0.1]
[1731230550628,9.08076694,205.55,205.54,0.1]
[1731230551115,0.12549,205.59,205.54,0.1]
[1731230551116,9.08076694,205.56,205.54,0.1]
[1731230551317,9.08076694,205.55,205.54,0.1]
[1731230551908,9.08076694,205.55,205.53,0.1]
[1731230552115,9.08076694,205.54,205.53,0.1]
[1731230552825,23.902374,205.64,205.53,0.1]
[1731230553030,23.902374,205.64,205.55,0.1]
[1731230553332,9.08076694,205.56,205.55,0.1]
[1731230553531,23.902374,205.64,205.55,0.1]
[1731230553729,9.08076694,205.56,205.55,0.1]
[1731230555814,9.08076694,205.56,205.51,0.1]
[1731230556017,9.08076694,205.52,205.5,0.1]
[1731230556214,9.08076694,205.51,205.5,0.1]
[1731230559142,9.08076694,205.51,205.49,0.1]
[1731230559316,9.08076694,205.5,205.49,0.1]
[1731230562941,0.12549,205.61,205.49,20.1]
[1731230563145,9.08076694,205.5,205.49,0.1]
[1731230567346,9.08076694,205.5,205.48,0.1]
[1731230567655,9.08076694,205.49,205.48,0.1]
[1731230567860,23.776884,205.56,205.48,0.1]
[1731230568056,9.08076694,205.49,205.48,0.1]
[1731230570243,9.08076694,205.49,205.46,0.1]
[1731230570474,9.08076694,205.49,205.48,0.1]
[1731230572968,9.08076694,205.49,205.46,0.2]
[1731230573263,23.776884,205.56,205.46,0.1]
[1731230573264,9.08076694,205.47,205.46,0.1]
[1731230577571,9.08076694,205.47,205.44,0.2]
[1731230577774,9.08076694,205.45,205.44,0.2]
[1731230578967,9.08076694,205.45,205.4,16.0027]
[1731230578968,9.08076694,205.45,205.42,0.1]
[1731230579169,9.08076694,205.43,205.42,0.1]
[1731230580788,9.08076694,205.43,205.4,0.2]
[1731230580961,23.902374,205.49,205.42,0.1]
[1731230581694,23.902374,205.49,205.38,0.2]
[1731230581915,9.08076694,205.4,205.38,0.2]
[1731230582383,138.12234176,205.5,205.38,0.2]
[1731230582565,9.08076694,205.4,205.38,0.2]
[1731230583382,9.08076694,205.39,205.38,0.2]
[1731230583976,9.08076694,205.4,205.38,0.2]
[1731230584768,94.28314094,205.49,205.42,0.1]
[1731230584968,52.91996776,205.5,205.42,0.1]
[1731230584969,9.08076694,205.43,205.42,0.1]
[1731230585582,9.08076694,205.43,205.42,0.2]
[1731230586681,97.7,205.55,205.37,20.0]
[1731230586682,9.08076694,205.48,205.46,0.1]
[1731230586887,109.89874094,205.56,205.46,0.1]
[1731230587116,9.08076694,205.51,205.49,0.1]
[1731230587284,9.08076694,205.51,205.5,0.1]
[1731230588067,0.84512966,205.6,205.52,0.1]
[1731230588281,9.08076694,205.53,205.52,0.1]
[1731230589280,9.08076694,205.54,205.52,0.1]
[1731230590866,37.16819742,205.6,205.52,0.1]
[1731230590867,37.16819742,205.6,205.53,0.1]
[1731230591073,9.08076694,205.54,205.53,0.1]
[1731230592174,9.08076694,205.54,205.52,0.1]
[1731230592388,9.08076694,205.53,205.5,0.1]
[1731230592573,9.08076694,205.51,205.5,0.1]
[1731230593072,9.08076694,205.51,205.48,0.1]
[1731230593431,0.12549,205.59,205.48,0.1]
[1731230593432,9.08076694,205.49,205.48,0.1]
[1731230594289,9.08076694,205.49,205.45,0.1]
[1731230594593,9.08076694,205.46,205.45,0.1]
[1731230601801,9.08076694,205.48,205.46,0.1]
[1731230602591,41.38015712,205.6,205.5,0.1]
[1731230602592,9.08076694,205.51,205.5,0.1]
[1731230605190,9.08076694,205.51,205.47,0.1]
[1731230605393,9.08076694,205.48,205.47,0.1]
[1731230606406,9.08076694,205.48,205.45,0.1]
[1731230606587,36.32306776,205.5,205.45,0.1]
[1731230606588,9.08076694,205.46,205.45,0.1]
[1731230606788,15.165,205.52,205.47,0.1]
[1731230606987,9.08076694,205.48,205.47,0.1]
[1731230608602,9.08076694,205.48,205.45,0.1]
[1731230608808,9.08076694,205.46,205.45,0.1]
[1731230610510,9.08076694,205.46,205.43,0.1]
[1731230610708,9.08076694,205.44,205.41,0.1]
[1731230611007,23.776884,205.55,205.41,0.1]
[1731230611205,9.08076694,205.42,205.41,0.1]
[1731230611813,9.08076694,205.42,205.39,0.1]
[1731230612108,15.165,205.49,205.39,0.1]
[1731230612109,9.08076694,205.4,205.39,0.1]
[1731230613195,0.12549,205.48,205.39,0.1]
[1731230613399,9.08076694,205.4,205.39,0.1]
[1731230614414,9.02208398,205.4,205.39,0.1]
[1731230614709,9.08076694,205.42,205.4,0.1]
[1731230615512,9.08076694,205.43,205.42,0.1]
[1731230615705,161.3,205.48,205.44,0.1]
[1731230615901,9.08076694,205.45,205.44,0.1]
[1731230621618,9.08076694,205.45,205.42,0.1]
[1731230621800,9.08076694,205.43,205.42,0.1]
[1731230623013,9.08076694,205.43,205.42,0.2]
[1731230625012,0.12549,205.52,205.42,0.2]
[1731230625312,36.32306776,205.5,205.44,0.1]
[1731230625517,0.12549,205.49,205.44,0.1]
[1731230626809,9.08076694,205.45,205.44,0.1]
[1731230627695,9.08076694,205.45,205.43,0.1]
[1731230627898,9.08076694,205.44,205.43,0.1]
[1731230628912,0.12549,205.51,205.43,0.1]
[1731230629111,9.08076694,205.44,205.43,0.1]
[1731230631503,9.08076694,205.44,205.34,4.856]
[1731230631504,9.08076694,205.47,205.45,0.2]
[1731230631700,9.08076694,205.48,205.47,0.2]
[1731230631901,9.08076694,205.49,205.47,0.2]
[1731230632321,9.08076694,205.48,205.47,0.2]
[1731230632718,9.08076694,205.49,205.47,0.2]
[1731230632907,9.08076694,205.48,205.47,0.2]
[1731230633706,255.3,205.62,205.52,0.1]
[1731230633913,36.32306776,205.6,205.53,0.1]
[1731230634114,9.08076694,205.54,205.53,0.1]
[1731230637613,0.12549,205.59,205.53,0.1]
[1731230637835,0.12549,205.59,205.56,0.1]
[1731230638130,5.05608237,205.64,205.58,0.1]
[1731230638437,0.12549,205.64,205.56,0.1]
[1731230638642,5.18177794,205.64,205.56,0.1]
[1731230639010,9.08076694,205.57,205.54,0.1]
[1731230639213,9.08076694,205.55,205.54,0.1]
[1731230640143,9.08076694,205.55,205.53,0.1]
[1731230640317,0.12549,205.59,205.53,0.1]
[1731230640674,9.08076694,205.55,205.54,0.1]
[1731230641521,9.08076694,205.56,205.54,0.1]
[1731230641834,9.08076694,205.55,205.54,0.1]
[1731230643025,9.08076694,205.56,205.54,0.1]
[1731230643225,9.08076694,205.56,205.55,0.1]
[1731230644219,9.08076694,205.58,205.57,0.2]
[1731230644421,9.08076694,205.59,205.57,0.2]
[1731230645625,9.08076694,205.58,205.57,0.2]
[1731230646317,9.08076694,205.6,205.57,0.2]
[1731230646629,9.08076694,205.59,205.57,0.2]
[1731230646945,9.08076694,205.58,205.57,0.2]
[1731230648118,0.12549,205.62,205.57,0.2]
[1731230648315,23.902374,205.67,205.57,0.2]
[1731230648635,9.08076694,205.58,205.57,0.2]
[1731230649434,9.08076694,205.58,205.57,0.1]
[1731230650130,9.08076694,205.58,205.55,0.2]
[1731230650330,9.08076694,205.56,205.55,0.2]
[1731230654431,9.08076694,205.56,205.55,0.1]
[1731230654638,9.08076694,205.56,205.53,0.1]
[1731230654839,9.08076694,205.54,205.53,0.1]
[1731230655045,9.08076694,205.54,205.53,0.2]
[1731230657156,9.08076694,205.54,205.53,0.1]
[1731230657747,9.08076694,205.54,205.51,0.2]
[1731230657947,9.08076694,205.52,205.51,0.2]
[1731230658138,9.08076694,205.52,205.51,0.1]
[1731230658333,9.08076694,205.52,205.49,0.2]
[1731230658531,9.08076694,205.5,205.49,0.2]
[1731230658736,0.12549,205.58,205.53,0.1]
[1731230658936,9.20625694,205.54,205.53,0.1]
[1731230659254,9.08076694,205.54,205.53,0.2]
[1731230659750,0.12549,205.58,205.55,0.1]
[1731230660252,0.12549,205.59,205.55,0.1]
[1731230660454,9.08076694,205.56,205.55,0.1]
[1731230660756,9.08076694,205.56,205.53,0.1]
[1731230661051,9.08076694,205.54,205.53,0.1]
[1731230663146,9.08076694,205.54,205.53,0.2]
[1731230663551,9.08076694,205.55,205.53,0.2]
[1731230664755,9.08076694,205.54,205.53,0.2]
[1731230666543,161.3,205.65,205.56,0.2]
[1731230666759,15.1715,205.67,205.56,0.2]
[1731230666760,9.08076694,205.57,205.56,0.2]
[1731230671864,0.12549,205.65,205.6,0.1]
[1731230673244,9.20625694,205.61,205.6,0.1]
[1731230673657,167.20243518,205.66,205.6,0.2]
[1731230673851,9.08076694,205.61,205.6,0.2]
[1731230674144,5.05729262,205.66,205.63,0.1]
[1731230674346,9.08076694,205.64,205.63,0.1]
[1731230674539,162.14484958,205.69,205.63,0.1]
[1731230674751,9.08076694,205.64,205.63,0.1]
[1731230676867,9.20625694,205.64,205.63,0.1]
[1731230678360,0.12549,205.63,205.61,0.1]
[1731230678553,0.12549,205.61,205.59,0.1]
[1731230678757,45.5293247,205.6,205.59,0.1]
[1731230678948,0.12549,205.59,205.58,0.1]
[1731230679146,9.20625694,205.59,205.57,0.1]
[1731230679570,9.08076694,205.58,205.57,0.1]
[1731230681670,0.12549,205.57,205.54,0.2]
[1731230681870,9.08076694,205.55,205.54,0.2]
[1731230684956,9.20625694,205.55,205.54,0.1]
[1731230685269,0.12549,205.54,205.52,0.1]
[1731230685472,161.3,205.64,205.57,0.1]
[1731230685774,36.32306776,205.6,205.57,0.1]
[1731230686278,0.12549,205.59,205.57,0.1]
[1731230686567,9.20625694,205.58,205.57,0.1]
[1731230690672,0.12549,205.58,205.57,0.1]
[1731230690890,9.20625694,205.58,205.57,0.1]
[1731230693458,9.20625694,205.58,205.55,0.1]
[1731230693459,0.12549,205.57,205.55,0.1]
[1731230693671,9.08076694,205.56,205.55,0.1]
[1731230694259,9.20625694,205.56,205.55,0.1]
[1731230696165,9.20625694,205.56,205.52,0.1]
[1731230696166,0.12549,205.55,205.52,0.1]
[1731230696370,9.20625694,205.53,205.52,0.1]
[1731230697463,0.12549,205.52,205.51,0.1]
[1731230697760,9.20625694,205.52,205.51,0.1]
[1731230698291,9.20625694,205.52,205.49,0.1]
[1731230698575,9.20625694,205.5,205.49,0.1]
[1731230698777,9.20625694,205.5,205.48,0.1]
[1731230698980,9.20625694,205.49,205.48,0.1]
[1731230699183,0.12549,205.48,205.44,0.1]
[1731230699368,0.12549,205.48,205.46,0.1]
[1731230699676,9.20625694,205.47,205.46,0.1]
[1731230700270,161.3,205.55,205.49,0.1]
[1731230700473,9.08076694,205.5,205.49,0.1]
[1731230700688,45.5293247,205.5,205.49,0.1]
[1731230700879,0.12549,205.49,205.46,0.1]
[1731230701180,0.12549,205.46,205.44,0.1]
[1731230701485,9.20625694,205.45,205.44,0.1]
[1731230701677,9.08076694,205.45,205.44,0.2]
[1731230703888,161.3,205.54,205.46,0.1]
[1731230704069,23.776884,205.53,205.5,0.1]
[1731230704270,161.3,205.56,205.5,0.1]
[1731230704477,5.04796922,205.55,205.5,0.1]
[1731230704969,0.12549,205.54,205.5,0.1]
[1731230705170,0.12549,205.5,205.48,0.1]
[1731230705385,9.20625694,205.49,205.48,0.1]
[1731230707287,0.12549,205.48,205.43,0.1]
[1731230707466,0.12549,205.48,205.45,0.1]
[1731230707788,9.20625694,205.46,205.45,0.1]
[1731230708786,0.12549,205.45,205.43,0.2]
[1731230709383,9.20625694,205.44,205.43,0.1]
[1731230710087,0.12549,205.43,205.4,0.1]
[1731230710291,9.20625694,205.41,205.4,0.1]
[1731230710488,0.12549,205.4,205.38,0.1]
[1731230710697,9.20625694,205.39,205.38,0.1]
[1731230711991,0.12549,205.39,205.38,0.1]
[1731230712290,9.20625694,205.39,205.38,0.1]
[1731230715088,5.04693452,205.43,205.39,0.1]
[1731230715399,161.3,205.46,205.4,0.1]
[1731230715599,0.12549,205.45,205.4,0.1]
[1731230716691,23.902374,205.45,205.4,0.1]
[1731230717892,9.20625694,205.41,205.4,0.1]
[1731230719200,0.12549,205.41,205.4,0.1]
[1731230719497,242.97647385,205.66,205.34,29.08076694]
[1731230719498,9.08076694,205.43,205.42,0.1]
[1731230719702,0.12549,205.43,205.42,0.1]
[1731230720199,9.08076694,205.43,205.42,0.1]
[1731230720502,9.20625694,205.43,205.42,0.1]
[1731230722089,9.20625694,205.43,205.42,0.2]
[1731230722386,0.12549,205.43,205.42,0.2]
[1731230722586,9.20625694,205.43,205.42,0.2]
[1731230723492,0.12549,205.43,205.42,0.2]
[1731230723697,9.20625694,205.43,205.42,0.2]
[1731230726002,9.20625694,205.43,205.42,0.1]
[1731230729784,9.20625694,205.43,205.33,0.1]
[1731230729785,9.08076694,205.43,205.4,0.1]
[1731230730094,9.20625694,205.41,205.4,0.1]
[1731230730280,0.12549,205.41,205.4,0.1]
[1731230732398,166.34377411,205.48,205.47,0.1]
[1731230732601,9.08076694,205.48,205.47,0.1]
[1731230732989,9.20625694,205.48,205.47,0.1]
[1731230734007,166.34351052,205.51,205.47,0.1]
[1731230734186,161.3,205.59,205.5,0.1]
[1731230734510,9.08076694,205.51,205.5,0.1]
[1731230735792,5.04576662,205.58,205.54,0.1]
[1731230736001,9.08076694,205.56,205.54,0.1]
[1731230736185,9.20625694,205.55,205.54,0.1]
[1731230736383,9.20625694,205.55,205.52,0.1]
[1731230736384,0.12549,205.54,205.52,0.1]
[1731230736588,9.20625694,205.53,205.52,0.1]
[1731230736790,177.8518,205.6,205.55,0.1]
[1731230736990,9.08076694,205.56,205.55,0.1]
[1731230738103,5.04695261,205.61,205.58,0.1]
[1731230738303,9.08076694,205.59,205.57,0.1]
[1731230738503,9.20625694,205.58,205.57,0.1]
[1731230738994,9.08076694,205.58,205.57,0.1]
[1731230739505,9.20625694,205.58,205.57,0.1]
[1731230747706,9.20625694,205.58,205.57,0.2]
[1731230762150,0.12549,205.58,205.57,0.2]
[1731230762354,9.20625694,205.58,205.57,0.2]
[1731230768459,9.20625694,205.58,205.57,0.1]
[1731230769094,9.20625694,205.58,205.57,0.2]
[1731230769361,0.0585863,205.62,205.59,0.2]
[1731230769547,9.08076694,205.6,205.59,0.2]
[1731230770064,0.0585863,205.62,205.61,0.2]
[1731230770243,9.13935324,205.62,205.61,0.2]
[1731230770953,0.0585863,205.62,205.61,0.2]
[1731230771156,9.13935324,205.62,205.61,0.2]
[1731230771860,9.26484324,205.62,205.61,0.2]
[1731230772072,45.587911,205.62,205.61,0.1]
[1731230773254,0.12549,205.61,205.59,0.1]
[1731230773457,45.5293247,205.6,205.59,0.1]
[1731230774963,0.12549,205.59,205.57,0.1]
[1731230775172,9.20625694,205.58,205.57,0.1]
[1731230776042,0.12549,205.57,205.55,0.1]
[1731230776243,9.20625694,205.56,205.55,0.1]
[1731230785272,0.12549,205.56,205.55,0.1]
[1731230785456,0.0585863,205.62,205.59,0.1]
[1731230785777,9.08076694,205.6,205.59,0.1]
[1731230788369,0.0585863,205.62,205.61,0.1]
[1731230788568,9.13935324,205.62,205.61,0.1]
[1731230792077,0.0585863,205.62,205.61,0.1]
[1731230792380,9.13935324,205.62,205.61,0.1]
[1731230793570,0.0585863,205.62,205.61,0.1]
[1731230793784,9.13935324,205.62,205.61,0.1]
[1731230793986,0.0585863,205.62,205.61,0.1]
[1731230794196,9.13935324,205.62,205.61,0.1]
[1731230794678,0.0585863,205.62,205.61,0.1]
[1731230794867,9.13935324,205.62,205.61,0.1]
[1731230797094,9.26484324,205.62,205.61,0.1]
[1731230799794,0.12549,205.61,205.59,0.1]
[1731230799972,45.5293247,205.6,205.59,0.1]
[1731230800375,45.5293247,205.6,205.59,4.0]
[1731230802075,9.20625694,205.6,205.59,4.0]
[1731230802676,0.0585863,205.62,205.61,0.1]
[1731230802895,9.13935324,205.62,205.61,0.1]
[1731230803110,9.26484324,205.62,205.61,0.1]
[1731230806093,0.1840763,205.62,205.61,0.1]
[1731230806301,9.13935324,205.62,205.61,0.1]
[1731230813681,9.13935233,205.62,205.61,0.1]
[1731230814507,9.26484233,205.62,205.61,0.1]
[1731230817088,9.15376555,205.62,205.61,0.1]
[1731230820799,0.12549,205.61,205.59,3.9]
[1731230821110,45.5293247,205.6,205.59,3.9]
[1731230822106,0.12549,205.59,205.48,20.1]
[1731230822308,9.08076694,205.52,205.48,20.2]
[1731230823012,9.08076694,205.53,205.48,20.2]
[1731230823204,0.1,205.65,205.49,14.24895586]
[1731230823384,9.08076694,205.57,205.5,29.18076694]
[1731230823585,23.776884,205.66,205.53,9.08076694]